fUSD/lending_fUSD_20240426
["ID","MTS","AMOUNT","RATE_DAILY","PERIOD"]
[323673837,1714157444340,-500.0,0.00011177,2]
[323673838,1714157444351,-500.0,0.00011177,2]
[323673839,1714157444360,-500.0,0.00011177,2]
[323673840,1714157444369,-500.0,0.00011177,2]
[323673841,1714157444378,-500.0,0.00011177,2]
[323673842,1714157444387,-503.29,0.00011177,2]
[323673843,1714157444397,-1070.07,0.00011177,2]
[323673844,1714157444406,-180.72,0.00011177,2]
[323673845,1714157444417,-500.0,0.00011177,2]
[323673846,1714157444426,-500.0,0.00011177,2]
[323673847,1714157444436,-500.0,0.00011177,2]
[323673848,1714157444445,-500.0,0.00011177,2]
[323673849,1714157444455,-500.0,0.00011177,2]
[323673850,1714157444464,-836.89,0.00011177,2]
[323673851,1714157444474,-500.0,0.00011177,2]
[323673852,1714157444483,-500.0,0.00011177,2]
[323673853,1714157444492,-500.0,0.00011177,2]
[323673854,1714157444501,-500.0,0.00011177,2]
[323673855,1714157444510,-500.0,0.00011177,2]
[323673856,1714157444520,-1110.12,0.00011177,2]
[323673857,1714157444529,-500.0,0.00011177,2]
[323673858,1714157444538,-500.0,0.00011177,2]
[323673859,1714157444547,-500.0,0.00011177,2]
[323673860,1714157444556,-500.0,0.00011177,2]
[323673861,1714157444565,-506.5,0.00011177,2]
[323673862,1714157444574,-606.66,0.00011177,2]
[323673863,1714157444584,-500.0,0.00011177,2]
[323673864,1714157444593,-500.0,0.00011177,2]
[323673865,1714157444603,-538.02,0.00011177,2]
[323673866,1714157444613,-270.5396822,0.00011177,2]
[323673867,1714157444622,-500.0,0.00011177,2]
[323673868,1714157444632,-432.32809186,0.00011177,2]
[323673869,1714157444641,-500.0,0.00011177,2]
[323673870,1714157444650,-500.0,0.00011177,2]
[323673871,1714157444660,-500.0,0.00011177,2]
[323673872,1714157444669,-500.0,0.00011177,2]
[323673873,1714157444679,-500.0,0.00011177,2]
[323673874,1714157444688,-500.0,0.00011177,2]
[323673875,1714157444697,-500.0,0.00011177,2]
[323673876,1714157444706,-541.67,0.00011177,2]
[323673877,1714157444716,-500.0,0.00011177,2]
[323673878,1714157444725,-500.0,0.00011177,2]
[323673879,1714157444735,-172.50542432,0.00011177,2]
[323673880,1714157444744,-500.0,0.00011177,2]
[323673881,1714157444753,-500.0,0.00011177,2]
[323673882,1714157444762,-500.0,0.00011177,2]
[323673883,1714157444771,-500.0,0.00011177,2]
[323673884,1714157444780,-500.0,0.00011177,2]
[323673885,1714157444789,-500.0,0.00011177,2]
[323673886,1714157444799,-500.0,0.00011177,2]
[323673887,1714157444808,-500.0,0.00011177,2]
[323673888,1714157444818,-500.0,0.00011177,2]
[323673889,1714157444829,-500.0,0.00011177,2]
[323673890,1714157444838,-500.0,0.00011177,2]
[323673891,1714157444847,-500.0,0.00011177,2]
[323673892,1714157444858,-500.0,0.00011177,2]
[323673893,1714157444868,-500.0,0.00011177,2]
[323673894,1714157444879,-500.0,0.00011177,2]
[323673895,1714157444888,-589.05,0.00011177,2]
[323673896,1714157444898,-500.0,0.00011177,2]
[323673897,1714157444908,-500.0,0.00011177,2]
[323673898,1714157444917,-500.0,0.00011177,2]
[323673899,1714157444927,-906.68,0.00011177,2]
[323673900,1714157444937,-500.0,0.00011177,2]
[323673901,1714157444947,-500.0,0.00011177,2]
[323673902,1714157444956,-500.0,0.00011177,2]
[323673903,1714157444966,-500.0,0.00011177,2]
[323673904,1714157444975,-500.0,0.00011177,2]
[323673905,1714157444985,-500.0,0.00011177,2]
[323673906,1714157445053,-521.3,0.00011177,2]
[323673907,1714157445063,-500.0,0.00011177,2]
[323673908,1714157445073,-500.0,0.00011177,2]
[323673909,1714157445082,-500.0,0.00011177,2]
[323673910,1714157445091,-715.09,0.00011177,2]
[323673911,1714157445102,-467.28500276,0.00011177,2]
[323673912,1714157445112,-500.0,0.00011177,2]
[323673913,1714157445122,-500.0,0.00011177,2]
[323673914,1714157445131,-547.67,0.00011177,2]
[323673915,1714157445141,-500.0,0.00011177,2]
[323673916,1714157445150,-2151.19595,0.00011177,2]
[323673917,1714157445159,-500.0,0.00011177,2]
[323673918,1714157445168,-2151.19595,0.00011177,2]
[323673919,1714157445178,-1212.26,0.00011177,2]
[323673920,1714157445187,-500.0,0.00011177,2]
[323673921,1714157445196,-500.0,0.00011177,2]
[323673922,1714157445205,-500.0,0.00011177,2]
[323673923,1714157445214,-504.73,0.00011177,2]
[323673924,1714157445224,-151.0,0.00011177,2]
[323673925,1714157445233,-500.0,0.00011177,2]
[323673926,1714157445242,-609.69,0.00011177,2]
[323673927,1714157445251,-500.0,0.00011177,2]
[323673928,1714157445261,-979.17,0.00011177,2]
[323673929,1714157445269,-1342.49,0.00011177,2]
[323673930,1714157445279,-1222.06,0.00011177,2]
[323673931,1714157445288,-500.0,0.00011177,2]
[323673932,1714157445299,-1347.03,0.00011177,2]
[323673933,1714157445309,-157.22657405,0.00011178,2]
[323673934,1714157445318,-500.0,0.00011178,2]
[323673935,1714157445330,-233.66849452,0.00011179,2]
[323673936,1714157445339,-705.7518147,0.00011179,2]
[323673937,1714157445350,-500.0,0.00011179,2]
[323673938,1714157445360,-500.0,0.00011179,2]
[323673939,1714157445369,-1017.83,0.00011179,2]
[323673940,1714157445380,-744.86,0.00011179,2]
[323673941,1714157445389,-500.0,0.00011179,2]
[323673942,1714157445398,-500.0,0.00011179,2]
[323673943,1714157445407,-408.36793413,0.0001118,2]
[323673944,1714157445417,-558.69566553,0.0001118,2]
[323673945,1714157445427,-500.0,0.0001118,2]
[323673946,1714157445437,-500.0,0.0001118,2]
[323673947,1714157445447,-500.0,0.0001118,2]
[323673948,1714157445458,-3000.0,0.0001118,2]
[323673949,1714157445467,-500.0,0.00011186,2]
[323673950,1714157445476,-156.18839963,0.00011189,2]
[323673951,1714157445485,-150.0,0.00011197,2]
[323673952,1714157445495,-150.0,0.00011243,2]
[323673953,1714157445505,-300.0,0.00011254,2]
[323673954,1714157445514,-150.0,0.00011282,2]
[323673955,1714157445523,-150.0,0.00011284,2]
[323673956,1714157445533,-282.15595537,0.00011286,2]
[323673957,1714157445542,-165.37997701,0.00011286,2]
[323673958,1714157445552,-2999.88375729,0.00011286,2]
[323673959,1714157445563,-3511.16473349,0.00011286,2]
[323673960,1714157445572,-4104.56315598,0.00011286,2]
[323673961,1714157445582,-285.55998699,0.00011286,2]
[323673962,1714157445592,-156.37789765,0.00011286,2]
[323673963,1714157445603,-989.22497163,0.00011286,2]
[323673964,1714157445612,-500.0,0.00011287,2]
[323673965,1714157445622,-500.0,0.00011287,2]
[323673966,1714157445646,-1302.43,0.00011287,2]
[323673967,1714157445657,-868.43,0.00011287,2]
[323673968,1714157445666,-704.26,0.00011287,2]
[323673969,1714157445676,-6203.0,0.00011287,2]
[323673970,1714157445686,-7957.99,0.00011287,2]
[323673971,1714157445695,-2056.67,0.00011287,2]
[323673972,1714157445705,-6412.43,0.00011287,2]
[323673973,1714157445715,-280999.73506456,0.00011288,2]
[323673974,1714157445724,-2151.19595,0.00011288,2]
[323673975,1714157445733,-2151.19595,0.00011288,2]
[323673976,1714157445743,-151.0,0.00011288,2]
[323673977,1714157445753,-150.0,0.00011294,2]
[323673978,1714157445763,-150.0,0.00011295,2]
[323673979,1714157445773,-150.0,0.00011298,2]
[323673980,1714157445782,-150.0,0.00011298,2]
[323673981,1714157445793,-150.0,0.00011318,2]
[323673982,1714157445802,-150.0,0.00011327,2]
[323673983,1714157445811,-150.0,0.00011344,2]
[323673984,1714157445824,-431.87224599,0.00011349,2]
[323673985,1714157445833,-500.0,0.00011349,2]
[323673986,1714157445843,-3158.23,0.00011349,2]
[323673987,1714157445854,-500.0,0.00011349,2]
[323673988,1714157445864,-500.0,0.00011349,2]
[323673989,1714157445873,-1155.46,0.00011349,2]
[323673990,1714157445883,-500.0,0.00011349,2]
[323673991,1714157445893,-703.35,0.00011349,2]
[323673992,1714157445902,-2851.7,0.00011349,2]
[323673993,1714157445912,-874.53,0.00011349,2]
[323673994,1714157445922,-1313.84,0.00011349,2]
[323673995,1714157445932,-500.0,0.00011349,2]
[323673996,1714157445943,-1136.53,0.00011349,2]
[323673997,1714157445952,-2023.17,0.00011349,2]
[323673998,1714157445961,-2016.79,0.00011349,2]
[323673999,1714157445970,-1728.41,0.00011349,2]
[323674000,1714157445979,-1619.01,0.00011349,2]
[323674001,1714157445988,-500.0,0.00011349,2]
[323674002,1714157445997,-1413.87,0.00011349,2]
[323674003,1714157446007,-3739.74,0.00011349,2]
[323674005,1714157446016,-2048.55,0.00011349,2]
[323674006,1714157446025,-904.74,0.00011349,2]
[323674008,1714157446035,-2212.99,0.00011349,2]
[323674009,1714157446044,-839.97,0.00011349,2]
[323674010,1714157446053,-2230.3,0.00011349,2]
[323674011,1714157446062,-500.0,0.00011349,2]
[323674012,1714157446071,-4607.87,0.00011349,2]
[323674014,1714157446080,-500.0,0.00011349,2]
[323674016,1714157446089,-500.0,0.00011349,2]
[323674017,1714157446101,-2403.24,0.00011349,2]
[323674018,1714157446111,-2869.65,0.00011349,2]
[323674019,1714157446121,-1627.23,0.00011349,2]
[323674020,1714157446130,-955.49,0.00011349,2]
[323674021,1714157446139,-930.84,0.00011349,2]
[323674022,1714157446148,-1021.85,0.00011349,2]
[323674023,1714157446157,-346.42,0.00011349,2]
[323674024,1714157446167,-905.36,0.00011349,2]
[323674025,1714157446176,-334.53,0.00011349,2]
[323674026,1714157446185,-2645.45,0.00011349,2]
[323674027,1714157446194,-4727.91,0.00011349,2]
[323674028,1714157446203,-500.0,0.00011349,2]
[323674029,1714157446212,-500.0,0.00011349,2]
[323674030,1714157446221,-2597.97,0.00011349,2]
[323674031,1714157446230,-500.0,0.00011349,2]
[323674032,1714157446240,-559.22,0.00011349,2]
[323674033,1714157446249,-500.0,0.00011349,2]
[323674034,1714157446258,-500.0,0.00011349,2]
[323674035,1714157446267,-500.0,0.00011349,2]
[323674036,1714157446276,-500.0,0.00011349,2]
[323674037,1714157446286,-500.0,0.00011349,2]
[323674038,1714157446295,-561.20596739,0.00011349,2]
[323674039,1714157446304,-2195.29,0.00011349,2]
[323674040,1714157446314,-180.02,0.00011349,2]
[323674041,1714157446326,-627.72,0.00011349,2]
[323674042,1714157446335,-469.58,0.00011349,2]
[323674043,1714157446346,-500.0,0.00011349,2]
[323674044,1714157446357,-1219.26,0.00011349,2]
[323674045,1714157446366,-1766.8,0.00011349,2]
[323674046,1714157446375,-518.36008081,0.00011349,2]
[323674047,1714157446384,-1057.76,0.00011349,2]
[323674048,1714157446393,-522.38,0.00011349,2]
[323674049,1714157446402,-500.0,0.0001135,2]
[323674050,1714157446411,-500.0,0.0001135,2]
[323674051,1714157446422,-500.0,0.0001135,2]
[323674052,1714157446433,-500.0,0.0001135,2]
[323674053,1714157446442,-500.0,0.0001135,2]
[323674054,1714157446451,-1560.9,0.0001135,2]
[323674055,1714157446461,-676.3,0.0001135,2]
[323674056,1714157446470,-521.66,0.0001135,2]
[323674057,1714157446479,-500.0,0.0001135,2]
[323674058,1714157446489,-417.3,0.0001135,2]
[323674059,1714157446498,-1552.5,0.0001135,2]
[323674060,1714157446507,-500.0,0.0001135,2]
[323674061,1714157446517,-573.26,0.0001135,2]
[323674062,1714157446527,-500.0,0.0001135,2]
[323674063,1714157446536,-667.66,0.0001135,2]
[323674064,1714157446546,-500.0,0.0001135,2]
[323674065,1714157446557,-500.0,0.0001135,2]
[323674066,1714157446566,-228.05,0.0001135,2]
[323674067,1714157446575,-501.63488696,0.0001135,2]
[323674068,1714157446584,-500.0,0.0001135,2]
[323674069,1714157446595,-667.21,0.0001135,2]
[323674070,1714157446606,-500.0,0.0001135,2]
[323674071,1714157446615,-500.0,0.0001135,2]
[323674072,1714157446624,-501.81947576,0.0001135,2]
[323674073,1714157446633,-500.0,0.0001135,2]
[323674074,1714157446643,-500.0,0.0001135,2]
[323674075,1714157446653,-2028.83,0.0001135,2]
[323674076,1714157446681,-500.0,0.0001135,2]
[323674077,1714157446697,-500.0,0.0001135,2]
[323674078,1714157446706,-1141.65,0.0001135,2]
[323674079,1714157446716,-500.0,0.0001135,2]
[323674081,1714157446725,-500.0,0.0001135,2]
[323674083,1714157446734,-500.0,0.0001135,2]
[323674085,1714157446743,-650.92,0.0001135,2]
[323674087,1714157446751,-500.0,0.0001135,2]
[323674089,1714157446760,-1686.64,0.0001135,2]
[323674092,1714157446769,-1069.02,0.0001135,2]
[323674094,1714157446778,-4843.07,0.0001135,2]
[323674096,1714157446787,-1492.18,0.0001135,2]
[323674098,1714157446796,-500.0,0.0001135,2]
[323674100,1714157446805,-2526.68,0.0001135,2]
[323674102,1714157446814,-1265.65,0.0001135,2]
[323674104,1714157446828,-500.0,0.0001135,2]
[323674106,1714157446837,-2630.47094276,0.0001135,2]
[323674143,1714157447170,-1058.31905724,0.0001135,2]
[323674145,1714157447180,-500.0,0.0001135,2]
[323674146,1714157447189,-1485.08,0.0001135,2]
[323674148,1714157447198,-2275.53,0.0001135,2]
[323674151,1714157447208,-1085.5,0.0001135,2]
[323674152,1714157447217,-7154.35,0.0001135,2]
[323674153,1714157447227,-2679.56,0.0001135,2]
[323674154,1714157447236,-929.95,0.0001135,2]
[323674155,1714157447247,-1894.2,0.0001135,2]
[323674156,1714157447256,-500.0,0.0001135,2]
[323674157,1714157447265,-500.0,0.0001135,2]
[323674158,1714157447274,-1104.25,0.0001135,2]
[323674159,1714157447282,-2399.58,0.0001135,2]
[323674160,1714157447291,-877.64,0.0001135,2]
[323674161,1714157447301,-1871.04,0.0001135,2]
[323674162,1714157447310,-569.56,0.0001135,2]
[323674163,1714157447318,-500.0,0.0001135,2]
[323674164,1714157447327,-500.0,0.0001135,2]
[323674166,1714157447336,-850.06,0.0001135,2]
[323674168,1714157447345,-791.51,0.0001135,2]
[323674170,1714157447355,-500.0,0.0001135,2]
[323674172,1714157447364,-1906.96,0.0001135,2]
[323674174,1714157447372,-2680.39,0.0001135,2]
[323674176,1714157447381,-500.0,0.0001135,2]
[323674178,1714157447390,-966.15,0.0001135,2]
[323674180,1714157447399,-500.0,0.0001135,2]
[323674182,1714157447408,-500.0,0.0001135,2]
[323674184,1714157447417,-500.0,0.0001135,2]
[323674186,1714157447427,-3958.99,0.0001135,2]
[323674188,1714157447436,-2268.65,0.0001135,2]
[323674190,1714157447446,-3747.04,0.0001135,2]
[323674192,1714157447455,-1534.89,0.0001135,2]
[323674194,1714157447464,-840.79,0.0001135,2]
[323674195,1714157447473,-5999.93,0.0001135,2]
[323674196,1714157447482,-8253.45,0.0001135,2]
[323674197,1714157447491,-234.99,0.0001135,2]
[323674198,1714157447500,-500.0,0.0001135,2]
[323674199,1714157447510,-500.0,0.0001135,2]
[323674200,1714157447519,-8068.06636859,0.00011351,2]
[323674201,1714157447528,-765.51,0.00011351,2]
[323674202,1714157447537,-1200.62,0.00011351,2]
[323674203,1714157447546,-500.0,0.00011351,2]
[323674204,1714157447556,-500.0,0.00011351,2]
[323674205,1714157447565,-500.0,0.00011351,2]
[323674206,1714157447574,-500.0,0.00011351,2]
[323674207,1714157447583,-576.56,0.00011351,2]
[323674208,1714157447593,-500.0,0.00011351,2]
[323674209,1714157447602,-361.93,0.00011351,2]
[323674210,1714157447611,-500.0,0.00011351,2]
[323674211,1714157447620,-1562.54,0.00011351,2]
[323674212,1714157447630,-500.0,0.00011351,2]
[323674213,1714157447639,-1689.56,0.00011351,2]
[323674214,1714157447650,-500.0,0.00011351,2]
[323674215,1714157447660,-365.98,0.00011351,2]
[323674216,1714157447669,-632.02,0.00011351,2]
[323674217,1714157447679,-721.22,0.00011351,2]
[323674218,1714157447688,-500.0,0.00011351,2]
[323674219,1714157447698,-500.0,0.00011351,2]
[323674220,1714157447708,-500.0,0.00011351,2]
[323674221,1714157447717,-612.68,0.00011351,2]
[323674222,1714157447727,-500.0,0.00011351,2]
[323674223,1714157447736,-500.0,0.00011351,2]
[323674224,1714157447745,-2136.15,0.00011351,2]
[323674225,1714157447755,-1565.33,0.00011351,2]
[323674226,1714157447764,-500.0,0.00011351,2]
[323674227,1714157447774,-2812.92,0.00011351,2]
[323674228,1714157447785,-1692.4,0.00011351,2]
[323674229,1714157447794,-1048.56,0.00011351,2]
[323674230,1714157447805,-500.0,0.00011351,2]
[323674231,1714157447814,-599.73,0.00011351,2]
[323674232,1714157447827,-646.55,0.00011351,2]
[323674233,1714157447836,-500.0,0.00011351,2]
[323674234,1714157447845,-500.0,0.00011351,2]
[323674235,1714157447854,-2748.52,0.00011351,2]
[323674236,1714157447865,-1392.16,0.00011351,2]
[323674237,1714157447874,-1235.64,0.00011351,2]
[323674238,1714157447883,-500.0,0.00011351,2]
[323674239,1714157447893,-5068.21,0.00011351,2]
[323674240,1714157447902,-2057.13,0.00011351,2]
[323674241,1714157447913,-500.0,0.00011351,2]
[323674242,1714157447923,-968.37,0.00011351,2]
[323674243,1714157447934,-3740.4,0.00011351,2]
[323674244,1714157447943,-500.0,0.00011351,2]
[323674245,1714157447952,-769.89,0.00011351,2]
[323674246,1714157447962,-2145.72,0.00011351,2]
[323674247,1714157447971,-3373.39,0.00011351,2]
[323674248,1714157447980,-500.0,0.00011351,2]
[323674249,1714157447990,-1456.06626317,0.00011351,2]
[323674250,1714157448009,-2345.96373683,0.00011351,2]
[323674251,1714157448018,-2497.65497238,0.00011351,2]
[323674252,1714157448059,-1251.06502762,0.00011351,2]
[323674253,1714157448068,-1526.41967985,0.00011351,2]
[323674254,1714157448079,-857.75,0.00011351,2]
[323674255,1714157448090,-5808.03032015,0.00011351,2]
[323674256,1714157448100,-2216.12,0.00011351,2]
[323674257,1714157448110,-500.0,0.00011351,2]
[323674258,1714157448119,-500.0,0.00011351,2]
[323674259,1714157448128,-2642.84,0.00011351,2]
[323674260,1714157448137,-14198.87,0.00011351,2]
[323674261,1714157448146,-1761.4,0.00011351,2]
[323674262,1714157448156,-2151.19595,0.00011351,2]
[323674263,1714157448165,-4517.36,0.00011351,2]
[323674264,1714157448174,-2151.19595,0.00011351,2]
[323674265,1714157448183,-678.3,0.00011351,2]
[323674266,1714157448193,-848.75,0.00011351,2]
[323674267,1714157448202,-6044.87,0.00011351,2]
[323674268,1714157448211,-1484.55,0.00011351,2]
[323674269,1714157448221,-1267.89,0.00011351,2]
[323674270,1714157448230,-690.8,0.00011351,2]
[323674271,1714157448239,-500.0,0.00011351,2]
[323674272,1714157448248,-1696.46,0.00011351,2]
[323674273,1714157448257,-2190.08,0.00011351,2]
[323674274,1714157448266,-151.0,0.00011351,2]
[323674275,1714157448276,-1981.14,0.00011351,2]
[323674276,1714157448285,-500.0,0.00011351,2]
[323674277,1714157448293,-3219.69,0.00011351,2]
[323674278,1714157448302,-500.0,0.00011351,2]
[323674279,1714157448311,-500.0,0.00011351,2]
[323674280,1714157448321,-2004.53,0.00011351,2]
[323674281,1714157448330,-830.64,0.00011351,2]
[323674282,1714157448340,-500.0,0.00011351,2]
[323674283,1714157448349,-500.0,0.00011351,2]
[323674284,1714157448359,-500.0,0.00011351,2]
[323674285,1714157448368,-500.0,0.00011351,2]
[323674286,1714157448378,-1279.8,0.00011351,2]
[323674287,1714157448387,-5581.52,0.00011351,2]
[323674288,1714157448396,-500.0,0.00011351,2]
[323674289,1714157448407,-151.17847543,0.00011352,2]
[323674290,1714157448417,-10000.0,0.00011354,2]
[323674291,1714157448426,-150.0,0.00011356,2]
[323674292,1714157448435,-816.0,0.0001137,2]
[323674293,1714157448446,-150.0,0.00011371,2]
[323674294,1714157448455,-150.0,0.00011374,2]
[323674295,1714157448464,-150.0,0.00011385,2]
[323674296,1714157448475,-150.0,0.00011391,2]
[323674297,1714157448483,-150.0,0.00011399,2]
[323674298,1714157448493,-347.954734,0.000114,2]
[323674299,1714157448503,-164.15,0.00011407,2]
[323674300,1714157448515,-150.0,0.00011414,2]
[323674301,1714157448525,-150.0,0.00011419,2]
[323674302,1714157448535,-150.0,0.0001142,2]
[323674303,1714157448546,-150.0,0.00011434,2]
[323674304,1714157448557,-150.0,0.00011439,2]
[323674305,1714157448568,-150.0,0.00011443,2]
[323674306,1714157448577,-500.0,0.00011451,2]
[323674307,1714157448587,-500.0,0.00011451,2]
[323674308,1714157448598,-245.47,0.00011451,2]
[323674309,1714157448609,-500.0,0.00011451,2]
[323674310,1714157448618,-522.4,0.00011451,2]
[323674311,1714157448628,-500.0,0.00011451,2]
[323674312,1714157448637,-427.44,0.00011451,2]
[323674313,1714157448646,-500.0,0.00011451,2]
[323674314,1714157448656,-500.0,0.00011451,2]
[323674315,1714157448666,-500.0,0.00011451,2]
[323674316,1714157448675,-500.0,0.00011451,2]
[323674317,1714157448685,-500.0,0.00011451,2]
[323674318,1714157448695,-500.0,0.00011451,2]
[323674319,1714157448705,-500.0,0.00011451,2]
[323674320,1714157448715,-500.0,0.00011451,2]
[323674321,1714157448725,-366.47602589,0.00011451,2]
[323674322,1714157448735,-500.0,0.00011451,2]
[323674323,1714157448745,-500.0,0.00011451,2]
[323674324,1714157448757,-616.61,0.00011451,2]
[323674325,1714157448767,-500.0,0.00011451,2]
[323674326,1714157448777,-500.0,0.00011451,2]
[323674327,1714157448787,-500.0,0.00011451,2]
[323674328,1714157448798,-500.0,0.00011451,2]
[323674329,1714157448808,-709.13,0.00011451,2]
[323674330,1714157448823,-500.0,0.00011451,2]
[323674331,1714157448833,-685.32,0.00011451,2]
[323674332,1714157448843,-728.45,0.00011451,2]
[323674333,1714157448853,-633.97,0.00011451,2]
[323674334,1714157448865,-500.0,0.00011451,2]
[323674335,1714157448875,-508.41,0.00011451,2]
[323674336,1714157448885,-500.0,0.00011451,2]
[323674337,1714157448897,-1230.8,0.00011451,2]
[323674338,1714157448908,-500.0,0.00011451,2]
[323674339,1714157448918,-500.0,0.00011451,2]
[323674340,1714157448927,-500.0,0.00011451,2]
[323674341,1714157448938,-532.14957478,0.00011451,2]
[323674342,1714157448948,-500.0,0.00011451,2]
[323674343,1714157448958,-500.0,0.00011451,2]
[323674344,1714157448969,-500.0,0.00011451,2]
[323674345,1714157448979,-500.0,0.00011451,2]
[323674346,1714157448989,-697.16,0.00011451,2]
[323674347,1714157448998,-735.24,0.00011451,2]
[323674348,1714157449008,-500.0,0.00011451,2]
[323674349,1714157449017,-500.0,0.00011451,2]
[323674350,1714157449027,-642.21,0.00011451,2]
[323674351,1714157449037,-603.75,0.00011451,2]
[323674352,1714157449046,-500.0,0.00011451,2]
[323674353,1714157449056,-692.36,0.00011451,2]
[323674354,1714157449066,-500.0,0.00011451,2]
[323674355,1714157449075,-500.0,0.00011451,2]
[323674356,1714157449085,-500.0,0.00011451,2]
[323674357,1714157449094,-949.93,0.00011451,2]
[323674358,1714157449103,-500.0,0.00011451,2]
[323674359,1714157449114,-500.0,0.00011451,2]
[323674360,1714157449123,-945.65,0.00011451,2]
[323674361,1714157449133,-500.0,0.00011451,2]
[323674362,1714157449143,-500.0,0.00011451,2]
[323674363,1714157449153,-804.12,0.00011451,2]
[323674364,1714157449163,-701.13,0.00011451,2]
[323674365,1714157449172,-500.0,0.00011451,2]
[323674366,1714157449182,-500.0,0.00011451,2]
[323674367,1714157449191,-1070.07,0.00011451,2]
[323674368,1714157449200,-836.89,0.00011451,2]
[323674369,1714157449210,-500.0,0.00011451,2]
[323674370,1714157449219,-500.0,0.00011451,2]
[323674371,1714157449229,-1110.12,0.00011451,2]
[323674372,1714157449238,-506.5,0.00011451,2]
[323674373,1714157449248,-500.0,0.00011451,2]
[323674374,1714157449258,-500.0,0.00011451,2]
[323674375,1714157449267,-500.0,0.00011451,2]
[323674376,1714157449277,-500.0,0.00011451,2]
[323674377,1714157449287,-500.0,0.00011451,2]
[323674378,1714157449297,-500.0,0.00011451,2]
[323674379,1714157449307,-500.0,0.00011451,2]
[323674380,1714157449317,-541.67,0.00011451,2]
[323674381,1714157449326,-500.0,0.00011451,2]
[323674382,1714157449336,-500.0,0.00011451,2]
[323674383,1714157449346,-500.0,0.00011451,2]
[323674384,1714157449356,-500.0,0.00011451,2]
[323674385,1714157449366,-500.0,0.00011451,2]
[323674386,1714157449376,-500.0,0.00011451,2]
[323674387,1714157449385,-500.0,0.00011451,2]
[323674388,1714157449395,-500.0,0.00011451,2]
[323674389,1714157449405,-589.05,0.00011451,2]
[323674390,1714157449415,-500.0,0.00011451,2]
[323674391,1714157449424,-500.0,0.00011451,2]
[323674392,1714157449436,-500.0,0.00011451,2]
[323674393,1714157449449,-906.68,0.00011451,2]
[323674394,1714157449458,-500.0,0.00011451,2]
[323674395,1714157449470,-500.0,0.00011451,2]
[323674396,1714157449480,-500.0,0.00011451,2]
[323674397,1714157449489,-500.0,0.00011451,2]
[323674398,1714157449499,-500.0,0.00011451,2]
[323674399,1714157449508,-521.3,0.00011451,2]
[323674400,1714157449518,-500.0,0.00011451,2]
[323674401,1714157449527,-493.22,0.00011451,2]
[323674402,1714157449537,-715.09,0.00011451,2]
[323674403,1714157449547,-500.0,0.00011451,2]
[323674404,1714157449558,-500.0,0.00011451,2]
[323674405,1714157449567,-547.67,0.00011451,2]
[323674406,1714157449577,-2151.19595,0.00011451,2]
[323674407,1714157449587,-500.0,0.00011451,2]
[323674408,1714157449597,-2151.19595,0.00011451,2]
[323674409,1714157449607,-1212.26,0.00011451,2]